fUSD/lending_fUSD_20240412
["ID","MTS","AMOUNT","RATE_DAILY","PERIOD"]
[322316292,1712947849933,-151.0,0.000428,7]
[322316294,1712947849945,-151.0,0.000428,7]
[322316296,1712947849955,-2856.50833,0.000428,2]
[322316298,1712947849964,-151.0,0.000428,14]
[322316299,1712947849973,-151.0,0.000428,14]
[322316301,1712947849982,-151.0,0.000428,14]
[322316303,1712947849991,-151.0,0.000428,14]
[322316305,1712947850001,-151.0,0.000428,14]
[322316307,1712947850010,-151.0,0.000428,14]
[322316309,1712947850019,-182.030433,0.000428,14]
[322316311,1712947850028,-182.030433,0.000428,14]
[322316313,1712947850041,-182.030433,0.000428,14]
[322316315,1712947850050,-182.030433,0.000428,14]
[322316317,1712947850059,-151.0,0.000428,14]
[322316319,1712947850069,-151.0,0.000428,14]
[322316321,1712947850078,-151.0,0.000428,14]
[322316323,1712947850087,-151.0,0.000428,14]
[322316325,1712947850097,-151.0,0.000428,14]
[322316327,1712947850107,-151.0,0.000428,14]
[322316329,1712947850116,-151.0,0.000428,14]
[322316331,1712947850125,-161.503713,0.000428,14]
[322316333,1712947850134,-151.0,0.000428,14]
[322316335,1712947850143,-151.0,0.000428,14]
[322316337,1712947850152,-151.0,0.000428,14]
[322316339,1712947850162,-232.585577,0.000428,14]
[322316341,1712947850172,-164.740397,0.000428,14]
[322316343,1712947850182,-164.740397,0.000428,14]
[322316345,1712947850192,-216.129351,0.000428,7]
[322316347,1712947850202,-220.231394,0.000428,14]
[322316349,1712947850211,-151.0,0.000428,14]
[322316351,1712947850221,-151.0,0.000428,14]
[322316353,1712947850231,-216.129351,0.000428,7]
[322316356,1712947850241,-613.416944,0.000428,14]
[322316357,1712947850251,-613.416944,0.000428,14]
[322316360,1712947850261,-151.0,0.000428,14]
[322316362,1712947850272,-200.0,0.000428,15]
[322316364,1712947850282,-151.0,0.000428,14]
[322316366,1712947850295,-151.0,0.000428,14]
[322316368,1712947850304,-570.52799,0.000428,14]
[322316370,1712947850313,-151.0,0.000428,14]
[322316372,1712947850323,-151.0,0.000428,14]
[322316374,1712947850332,-570.52799,0.000428,14]
[322316376,1712947850341,-151.0,0.000428,14]
[322316378,1712947850350,-151.0,0.000428,14]
[322316380,1712947850359,-194.808485,0.000428,14]
[322316382,1712947850369,-194.808485,0.000428,14]
[322316384,1712947850378,-230.505423,0.000428,14]
[322316386,1712947850388,-151.0,0.000428,14]
[322316388,1712947850398,-151.0,0.000428,14]
[322316390,1712947850407,-150.0,0.00042889,30]
[322316392,1712947850417,-150.0,0.00042889,30]
[322316394,1712947850427,-150.0,0.00042889,30]
[322316396,1712947850436,-150.0,0.00042889,30]
[322316398,1712947850445,-10000.0,0.0004289,4]
[322316400,1712947850454,-150.0,0.00042899,30]
[322316402,1712947850464,-150.0,0.00042899,30]
[322316404,1712947850474,-150.0,0.00042899,30]
[322316406,1712947850483,-150.0,0.00042899,30]
[322316408,1712947850492,-1946.13047979,0.000429,2]
[322316410,1712947850503,-153.97663511,0.000429,17]
[322316412,1712947850514,-7524.71943962,0.000429,17]
[322316414,1712947850525,-61853.94580765,0.000429,2]
[322316416,1712947850535,-1132.0,0.000429,15]
[322316418,1712947850547,-9580.35456223,0.000429,2]
[322316420,1712947850558,-3474.43842123,0.000429,2]
[322316422,1712947850567,-206.46540009,0.000429,2]
[322316424,1712947850576,-174.1941933,0.000429,9]
[322316426,1712947850586,-161.02677251,0.0004297,30]
[322316428,1712947850595,-150.0,0.0004297,30]
[322316430,1712947850605,-150.0,0.0004297,30]
[322316431,1712947850614,-150.0,0.0004297,30]
[322316433,1712947850623,-150.0,0.0004297,30]
[322316435,1712947850633,-151.0,0.00042971,14]
[322316437,1712947850643,-500.0,0.00042971,14]
[322316439,1712947850652,-500.0,0.00042971,14]
[322316441,1712947850662,-253.88045,0.00042971,14]
[322316443,1712947850672,-253.88045,0.00042971,14]
[322316445,1712947850682,-151.0,0.00042971,14]
[322316447,1712947850692,-151.0,0.00042971,14]
[322316449,1712947850702,-151.0,0.00042971,14]
[322316451,1712947850711,-151.0,0.00042971,14]
[322316453,1712947850721,-151.0,0.00042971,7]
[322316455,1712947850731,-151.0,0.00042971,14]
[322316457,1712947850741,-151.0,0.00042971,14]
[322316459,1712947850751,-151.0,0.00042971,14]
[322316461,1712947850760,-182.030433,0.00042971,14]
[322316463,1712947850770,-182.030433,0.00042971,14]
[322316465,1712947850781,-151.0,0.00042971,14]
[322316467,1712947850793,-100636.1798455,0.00042971,2]
[322316469,1712947850803,-97563.3193922,0.00042971,2]
[322316471,1712947850813,-94490.4589389,0.00042971,2]
[322316473,1712947850828,-151.0,0.00042971,14]
[322316475,1712947850838,-151.0,0.00042971,14]
[322316476,1712947850848,-151.0,0.00042971,14]
[322316477,1712947850857,-151.0,0.00042971,14]
[322316478,1712947850872,-151.0,0.00042971,14]
[322316479,1712947850881,-164.740397,0.00042971,14]
[322316480,1712947850891,-164.740397,0.00042971,14]
[322316481,1712947850901,-496.9025637,0.00042971,2]
[322316483,1712947850911,-481.7299664,0.00042971,2]
[322316485,1712947850920,-466.557369,0.00042971,2]
[322316487,1712947850930,-216.129351,0.00042971,7]
[322316489,1712947850940,-151.0,0.00042971,14]
[322316491,1712947850950,-151.0,0.00042971,14]
[322316493,1712947850960,-216.129351,0.00042971,7]
[322316495,1712947850970,-613.416944,0.00042971,14]
[322316497,1712947850980,-613.416944,0.00042971,14]
[322316499,1712947850990,-151.0,0.00042971,14]
[322316501,1712947851000,-5620.7575638,0.00042971,2]
[322316503,1712947851010,-5449.1313786,0.00042971,2]
[322316505,1712947851019,-5277.5051935,0.00042971,2]
[322316507,1712947851029,-151.0,0.00042971,14]
[322316509,1712947851041,-151.0,0.00042971,14]
[322316511,1712947851050,-570.52799,0.00042971,14]
[322316513,1712947851059,-190.687009,0.00042971,14]
[322316515,1712947851069,-151.0,0.00042971,14]
[322316517,1712947851078,-570.52799,0.00042971,14]
[322316519,1712947851088,-151.0,0.00042971,14]
[322316521,1712947851097,-151.0,0.00042971,14]
[322316523,1712947851107,-194.808485,0.00042971,14]
[322316525,1712947851116,-194.808485,0.00042971,14]
[322316527,1712947851126,-273.781494,0.00042971,14]
[322316529,1712947851136,-151.0,0.00042971,14]
[322316531,1712947851145,-16724.377514,0.00042971,2]
[322316533,1712947851156,-14167.2593737,0.00042971,2]
[322316535,1712947851166,-11610.1412335,0.00042971,2]
[322316538,1712947851175,-206.59266165,0.00042989,2]
[322316539,1712947851186,-5832.36659362,0.00042989,2]
[322316541,1712947851195,-441.70411113,0.00042998,20]
[322316543,1712947851205,-161.79781133,0.00042998,4]
[322316545,1712947851215,-545.18931143,0.00042998,4]
[322316547,1712947851225,-155.92538713,0.00042998,4]
[322316549,1712947851235,-129415.96028136,0.00043,5]
[322316552,1712947851251,-13300.00000001,0.00043,5]
[322316554,1712947851263,-4022.0,0.00043,5]
[322316556,1712947851276,-3338.92157605,0.00043,5]
[322316558,1712947851291,-1330.624,0.00043,5]
[322316560,1712947851304,-1224.61,0.00043,5]
[322316562,1712947851316,-1986.0642,0.00043,5]
[322316564,1712947851328,-400.0,0.00043,5]
[322316570,1712947851386,-1316731.26945803,0.00043,5]
[322316573,1712947851398,-342.73533724,0.00043,5]
[322316575,1712947851410,-13442.91594593,0.00043,5]
[322316577,1712947851422,-390.21121279,0.00043,5]
[322316579,1712947851434,-2192.90566908,0.00043,5]
[322316582,1712947851450,-32654.90058629,0.00043,5]
[322316583,1712947851461,-1654.1,0.00043,5]
[322316584,1712947851473,-27499.04496723,0.00043,5]
[322316585,1712947851485,-3401.25428076,0.00043,5]
[322316586,1712947851497,-1113.9,0.00043,5]
[322316587,1712947851508,-488.98584898,0.00043,5]
[322316588,1712947851521,-1997.58680348,0.00043,5]
[322316589,1712947851532,-13290.7284,0.00043,5]
[322316590,1712947851548,-6649.04482703,0.00043,5]
[322316591,1712947851560,-6685.24096,0.00043,5]
[322316592,1712947851572,-6444.60000002,0.00043,5]
[322316593,1712947851584,-693.73976927,0.00043,5]
[322316594,1712947851596,-597.24,0.00043,5]
[322316595,1712947851608,-2413.11556686,0.00043,5]
[322316598,1712947851620,-717.75000002,0.00043,5]
[322316600,1712947851632,-308.3,0.00043,5]
[322316602,1712947851643,-2830.9999,0.00043,5]
[322316604,1712947851655,-146387.07309286,0.00043,5]
[322316606,1712947851666,-1894.52663189,0.00043,5]
[322316608,1712947851677,-3070.77490762,0.00043,5]
[322316610,1712947851689,-2617.03939007,0.00043,5]
[322316613,1712947851700,-8631.69262556,0.00043,5]
[322316615,1712947851712,-455.00001549,0.00043,5]
[322316617,1712947851723,-2997.00845365,0.00043,5]
[322316619,1712947851735,-2472.82749047,0.00043,5]
[322316651,1712947852057,3077.21,0.00019954,2]
[322316656,1712947852092,-335.7407,0.00020301,2]
[322316658,1712947852103,-4469.97922526,0.000209,2]
[322316660,1712947852114,-435.398588,0.00027123,2]
[322316662,1712947852124,-123226.91433534,0.00043,5]
[322316664,1712947852136,-287.2049135,0.00043,5]
[322316666,1712947852147,-59566.73673752,0.00043,5]
[322316668,1712947852159,-3109105.41737871,0.00043,5]
[322316670,1712947852171,-629835.5913702,0.00043,5]
[322316680,1712947852279,-456.35729585,0.00043,5]
[322316681,1712947852293,-4211.70784259,0.00043,5]
[322316682,1712947852304,-2553.55282589,0.00043,5]
[322316683,1712947852316,-2233.811527,0.00043,5]
[322316684,1712947852328,-528.45037976,0.00043,5]
[322316685,1712947852340,-299.481,0.00043,5]
[322316688,1712947852353,-3915.59999948,0.00043,5]
[322316690,1712947852365,-15044.24358983,0.00043,5]
[322316692,1712947852376,-610.0,0.00043,5]
[322316694,1712947852387,-1225.0,0.00043,5]
[322316696,1712947852399,-1819.99999776,0.00043,5]
[322316698,1712947852410,-600.06,0.00043,5]
[322316701,1712947852421,-317.05,0.00043,5]
[322316703,1712947852433,-12002.47083494,0.00043,5]
[322316705,1712947852444,-761.86924399,0.00043,5]
[322316717,1712947852549,1323.52048471,0.00019399,2]
[322316751,1712947852873,-185.78135859,0.00020899,2]
[322316753,1712947852883,-123.29864141,0.00027945,14]
[322316755,1712947852895,-312.09994659,0.00027945,14]
[322316757,1712947852905,-150.0,0.00028996,2]
[322316759,1712947852914,-4469.97922526,0.000319,2]
[322316761,1712947852924,-1397.92082817,0.000429,2]
[322316763,1712947852936,-1010.0,0.000429,2]
[322316771,1712947853119,-999.22857341,0.000429,2]
[322316773,1712947853128,-3005.32571862,0.00043,5]
[322316775,1712947853141,-94665.42064091,0.00043,5]
[322316777,1712947853153,-555.29,0.00043,5]
[322316779,1712947853164,-263.25303856,0.00043,5]
[322316781,1712947853176,-1499.99892268,0.00043,5]
[322316784,1712947853188,-5699.92721671,0.00043,5]
[322316786,1712947853199,-1499.98284243,0.00043,5]
[322316788,1712947853212,-339.4906816,0.00043,5]
[322316790,1712947853224,-12724.34843593,0.00043,5]
[322316793,1712947853236,-648.928155,0.00043,5]
[322316795,1712947853248,-666.95692,0.00043,5]
[322316797,1712947853268,-538.46308152,0.00043,5]
[322316799,1712947853279,-1895.44952966,0.00043,5]
[322316801,1712947853293,-475765.93008646,0.00043,5]
[322316802,1712947853305,-700.0,0.00043,5]
[322316803,1712947853316,-301.90388514,0.00043,5]
[322316804,1712947853327,-354.72788086,0.00043,5]
[322316805,1712947853340,-348.49967892,0.00043,5]
[322316806,1712947853351,-133342.31448464,0.00043,5]
[322316807,1712947853362,-1159.70846616,0.00043,5]
[322316808,1712947853373,-6888.88458644,0.00043,5]
[322316810,1712947853385,-2973.23455193,0.00043,5]
[322316812,1712947853396,-3151.59999991,0.00043,5]
[322316814,1712947853407,-6728.29999999,0.00043,5]
[322316816,1712947853418,-509.999985,0.00043,5]
[322316819,1712947853430,-1584.0,0.00043,5]
[322316821,1712947853443,-8430.03170084,0.00043,5]
[322316823,1712947853454,-74447.8681516,0.00043,5]
[322316828,1712947853500,-3310.66979547,0.00043,5]
[322316831,1712947853513,-2525.0,0.00043,5]
[322316833,1712947853524,-6700.5,0.00043,5]
[322316835,1712947853536,-935.21484251,0.00043,5]
[322316837,1712947853551,-1401.6000012,0.00043,5]
[322316840,1712947853567,-77665.0,0.00043,5]
[322316842,1712947853579,-266350.37612789,0.00043,5]
[322316844,1712947853591,-862.2135764,0.00043,5]
[322316847,1712947853603,-1250.0,0.00043,5]
[322316850,1712947853615,-400.0,0.00043,5]
[322316853,1712947853627,-337.65,0.00043,5]
[322316855,1712947853639,-3484.61788032,0.00043,5]
[322316860,1712947853657,-1110.67857053,0.00043,5]
[322316925,1712947853939,-345.401,0.00020301,2]
[322316930,1712947853952,-22.80319451,0.00020301,2]
[322316934,1712947853961,-350.28794672,0.000204,2]
[322316938,1712947853970,-697.57280196,0.00020899,2]
[322316941,1712947853980,-5163.90232643,0.00020899,2]
[322316943,1712947853989,-10000.0,0.00034558,2]
[322316945,1712947853998,-56986.55462612,0.00043,5]
[322316948,1712947854009,-336.95839996,0.00043,5]
[322316952,1712947854020,-8035.23481006,0.00043,5]
[322316955,1712947854031,-13140.0,0.00043,5]
[322316973,1712947854244,-3599.99232399,0.00043,5]
[322316975,1712947854257,-16746.94,0.00043,5]
[322316978,1712947854269,-19487.31791149,0.00043,5]
[322316980,1712947854283,-1778.32008276,0.00043,5]
[322316982,1712947854300,-271.09589018,0.00043,5]
[322316984,1712947854313,-66213.23999999,0.00043,5]
[322316995,1712947854433,-7167.69647047,0.00043,5]
[322316996,1712947854444,-2221.03993,0.00043,5]
[322316997,1712947854455,-865.00999,0.00043,5]
[322316998,1712947854467,-33355.98975134,0.00043,5]
[322316999,1712947854478,-371.14465294,0.00043,5]
[322317000,1712947854490,-454.09046235,0.00043,5]
[322317001,1712947854502,-78311.06410408,0.00043,5]
[322317002,1712947854517,-1450.0,0.00043,5]
[322317003,1712947854528,-2657.753696,0.00043,5]
[322317004,1712947854660,-10043.35568235,0.00043,5]
[322317005,1712947854672,-2157.97408798,0.00043,5]
[322317006,1712947854683,-3825.0000075,0.00043,5]
[322317007,1712947854695,-1042.0,0.00043,5]
[322317008,1712947854706,-18229.21374145,0.00043,5]
[322317009,1712947854719,-1650.66273191,0.00043,5]
[322317010,1712947854755,-25225.36705638,0.00043,5]
[322317011,1712947854766,-3567.86038497,0.00043,5]
[322317012,1712947854778,-5351.94481054,0.00043,5]
[322317013,1712947854791,-5274.04161072,0.00043,5]
[322317014,1712947854803,-6618.17921156,0.00043,5]
[322317015,1712947854816,-4393.82038395,0.00043,5]
[322317016,1712947854831,-33250.0,0.00043,5]
[322317017,1712947854844,-350.14700005,0.00043,5]
[322317018,1712947854856,-365.224752,0.00043,5]
[322317019,1712947854870,-3083.06805213,0.00043,5]
[322317020,1712947855214,-27863.69959422,0.00043,5]
[322317021,1712947855226,-253.35033052,0.00043,5]
[322317022,1712947855238,-3538.77021846,0.00043,5]
[322317023,1712947855250,-10022.35827408,0.00043,5]
[322317024,1712947855385,-335.43204373,0.00043,5]
[322317025,1712947855397,-623.0,0.00043,5]
[322317026,1712947855409,-256.55786018,0.00043,5]
[322317027,1712947855421,-7402.70884184,0.00043,5]
[322317028,1712947855433,-5245.19689501,0.00043,5]
[322317029,1712947855445,-2560.70476,0.00043,5]
[322317030,1712947855457,-1327.22324665,0.00043,5]
[322317031,1712947855471,-531.94904,0.00043,5]
[322317032,1712947855483,-629.89,0.00043,5]
[322317033,1712947855549,-362.09687178,0.00020399,2]
[322317034,1712947855558,-1194.70312442,0.000429,2]
[322317035,1712947855570,-3275.27610084,0.000429,2]
[322317036,1712947855579,-23294.72389917,0.00043,5]
[322317037,1712947855591,-5060.0,0.00043,5]
[322317038,1712947855602,-14373.5116674,0.00043,5]
[322317039,1712947855684,-25588.70913533,0.00043,5]
[322317040,1712947855696,-268.72621882,0.00043,5]
[322317041,1712947855720,-886.51923235,0.00020898,2]
[322317042,1712947855732,-2133.47411875,0.00020898,2]
[322317043,1712947855742,-854.07390777,0.00043,5]
[322317044,1712947855753,-16026.49401926,0.00043,5]
[322317045,1712947855765,-1709.16479122,0.00043,5]
[322317046,1712947856407,-3410.21437728,0.00043,5]
[322317047,1712947856422,-88526.74234635,0.00043,5]
[322317048,1712947856434,-3328.359975,0.00043,5]
[322317049,1712947856448,-291.2772942,0.00043,5]
[322317050,1712947856460,-29000.00133545,0.00043,5]
[322317051,1712947856472,-7524.32418534,0.00043,5]
[322317052,1712947856484,-1551.19368283,0.00043,5]
[322317053,1712947856496,-4367.17988549,0.00043,5]
[322317054,1712947856509,-26515.0620392,0.00043,5]
[322317055,1712947856521,-441.1768243,0.00043,5]
[322317056,1712947856533,-310.00217,0.00043,5]
[322317057,1712947856547,-37181.62119711,0.00043,5]
[322317058,1712947856741,-994.19092379,0.00043,5]
[322317059,1712947856753,-1013.92560801,0.00043,5]
[322317060,1712947856766,-799.43449544,0.00043,5]
[322317061,1712947856778,-3727.8673904,0.00043,5]
[322317062,1712947857667,-325.1480307,0.00020398,2]
[322317063,1712947857677,-441.53358594,0.00020399,2]
[322317064,1712947857686,-279.92708951,0.00020898,2]
[322317065,1712947857697,-535.56620293,0.00020898,2]
[322317066,1712947857706,-368.20419449,0.00021915,2]
[322317067,1712947857716,-1044.43572924,0.00041572,5]
[322317068,1712947857727,-205.92,0.0004279,10]
[322317069,1712947857737,-2137.0,0.00042971,7]
[322317070,1712947857748,-21133.06516719,0.00043,5]
[322317071,1712947857939,-2470.81893297,0.00043,5]
[322317072,1712947857952,-2856.20277629,0.00043,5]
[322317073,1712947858589,838.68002792,0.00018808,5]
[322317074,1712947859038,1319.9454696,0.00019399,2]
[322317085,1712947871637,364.99752473,0.00019399,2]
[322317095,1712947891508,2412.3051,0.00020093,2]
[322317103,1712947932338,500.0,0.00035458,30]
[322317104,1712947933046,4546.7524372,0.000199,3]
[322317107,1712947976112,3308.0,0.00019851,2]
[322317108,1712947984047,150.5,0.0002049,15]
[322317109,1712947984609,150.5,0.0002048,15]
[322317110,1712947984673,236.0,0.0002049,15]
[322317111,1712947985069,150.5,0.0002047,15]
[322317112,1712947985170,236.0,0.0002048,15]
[322317113,1712947985647,236.0,0.0002047,15]
[322317114,1712947985913,150.5,0.0002049,15]
[322317115,1712947986124,236.0,0.0002089,15]
[322317116,1712947986426,150.5,0.0002048,15]
[322317117,1712947986604,236.0,0.0002088,15]
[322317118,1712947986933,224.0,0.0002047,15]
[322317119,1712947987083,236.0,0.0002087,15]
[322317120,1712947987567,236.0,0.0002089,15]
[322317121,1712947988032,236.0,0.0002088,15]
[322317122,1712947988877,31471.84496546,0.000189,2]
[322317123,1712947988904,2000000.0,0.000189,2]
[322317124,1712947988929,25200.0,0.000189,2]
[322317125,1712947988960,350859.5966407,0.000189,2]
[322317127,1712948020733,10000.0,0.00035458,30]
[322317128,1712948032907,1114.39933727,0.00035458,120]
[322317130,1712948039915,12509.52605947,0.00035458,120]
[322317131,1712948043349,150.0,0.000181,2]
[322317132,1712948043373,150.0,0.000181,2]
[322317133,1712948043397,150.0,0.000181,2]
[322317134,1712948043423,150.0,0.000181,2]
[322317135,1712948043448,150.0,0.000181,2]
[322317136,1712948043472,150.0,0.000181,2]
[322317137,1712948043494,150.0,0.000181,2]
[322317138,1712948043525,150.0,0.000181,2]
[322317139,1712948043548,150.0,0.000181,2]
[322317140,1712948043570,150.0,0.000181,2]
[322317141,1712948043607,150.0,0.000181,2]
[322317142,1712948043632,1.69151073,0.000181,2]
[322317143,1712948058671,150.0,0.000181,2]
[322317144,1712948058692,134.70915521,0.000181,2]
[322317147,1712948076616,150.0,0.000181,2]
[322317148,1712948076640,100.77477702,0.000181,2]
[322317149,1712948077085,49.22522298,0.00015,2]
[322317150,1712948077105,150.0,0.00015,2]
[322317151,1712948077127,150.0,0.00015,2]
[322317152,1712948077147,150.0,0.00015,2]
[322317153,1712948077168,150.0,0.00015,2]
[322317154,1712948077189,150.0,0.00015,2]
[322317155,1712948077210,150.0,0.00015,2]
[322317156,1712948077231,150.0,0.00015,2]
[322317157,1712948077251,150.0,0.00015,2]
[322317158,1712948077272,150.0,0.00015,2]
[322317159,1712948077299,150.0,0.00015,2]
[322317160,1712948077321,150.0,0.00015,2]
[322317161,1712948077343,150.0,0.00015,2]
[322317162,1712948077364,150.0,0.00015,2]
[322317163,1712948077384,150.0,0.00015,2]
[322317164,1712948077404,150.0,0.00015,2]
[322317165,1712948077425,150.0,0.00015,2]
[322317166,1712948077446,150.0,0.00015,2]
[322317167,1712948077466,150.0,0.00015,2]
[322317168,1712948077486,150.0,0.00015,2]
[322317169,1712948077507,150.0,0.00015,2]
[322317170,1712948077531,150.0,0.00015,2]
[322317171,1712948077552,150.0,0.00015,2]
[322317172,1712948077573,150.0,0.00015,2]
[322317173,1712948077593,150.0,0.00015,2]
[322317174,1712948077615,150.0,0.00015,2]
[322317175,1712948077636,150.0,0.00015,2]
[322317176,1712948077656,150.0,0.00015,2]
[322317177,1712948077677,150.0,0.00015,2]
[322317178,1712948077700,680.03151194,0.00015,2]
[322317179,1712948082483,24722.31329424,0.00035458,30]
[322317180,1712948083567,51541.25332945,0.00035458,120]
[322317181,1712948084963,1006.80996252,0.0002736,120]
[322317182,1712948086289,207.99816825,0.000181,2]
[322317183,1712948086365,100195.56545137,0.00035458,120]
[322317184,1712948091926,150.0,0.000181,2]
[322317185,1712948091948,150.0,0.000181,2]
[322317186,1712948096227,786.41778671,0.000181,2]
[322317187,1712948096716,900.0,0.000181,2]
[322317188,1712948098613,1800.0,0.000181,2]
[322317189,1712948104153,150.5,0.0002049,15]
[322317190,1712948104885,150.5,0.0002048,15]
[322317191,1712948105486,150.5,0.0002047,15]
[322317192,1712948105978,150.5,0.0002049,15]
[322317193,1712948106063,150.5,0.0002097,15]
[322317194,1712948106436,150.5,0.0002048,15]
[322317195,1712948106883,225.5,0.0002047,15]
[322317196,1712948107110,283.0,0.0002096,15]
[322317197,1712948152639,1000.0,0.00035379,120]
[322317198,1712948153128,1064.0,0.00035379,120]
[322317199,1712948172577,-201.98830693,0.00019096,2]
[322317200,1712948172599,-200.0,0.00019097,2]
[322317201,1712948172624,-1048.01169307,0.00019329,2]
[322317202,1712948177222,150.0,0.00018982,2]
[322317203,1712948177244,150.0,0.00018982,2]
[322317204,1712948177266,150.0,0.00018982,2]
[322317205,1712948177287,150.0,0.00018982,2]
[322317206,1712948177327,67.63,0.00018982,2]
[322317207,1712948224600,150.5,0.0002049,15]
[322317208,1712948225099,150.5,0.0002048,15]
[322317209,1712948225575,150.5,0.0002047,15]
[322317210,1712948226234,219.0,0.0002097,15]
[322317211,1712948249387,3505.52,0.00018934,2]
[322317212,1712948257181,200.0,0.000196,7]
[322317213,1712948259655,500.0,0.000197,7]
[322317214,1712948259708,1390.21,0.00018856,2]
[322317215,1712948261477,800.0,0.000198,7]
[322317216,1712948263775,1000.0,0.000199,7]
[322317217,1712948265153,150.0,0.00018982,2]
[322317218,1712948265174,76.75247328,0.00018982,2]
[322317219,1712948265883,1300.0,0.000208,7]
[322317220,1712948268103,200.0,0.000209,7]
[322317221,1712948271357,351.17715026,0.00018982,2]
[322317223,1712948292404,6024.36,0.00018612,2]
[322317225,1712948372737,150.0,0.00018917,2]
[322317226,1712948372758,8.02936833,0.00018917,2]
[322317227,1712948389086,158.54228316,0.00018991,2]
[322317228,1712948389782,900.0,0.00018612,2]
[322317229,1712948391645,202.57749245,0.00018481,2]
[322317230,1712948391673,575.84250755,0.00018481,2]
[322317231,1712948391865,778.42,0.00018485,2]
[322317232,1712948392112,778.42,0.0001849,2]
[322317233,1712948392341,778.42,0.00018495,2]
[322317234,1712948392555,778.42,0.000185,2]
[322317235,1712948392769,778.42,0.00018505,2]
[322317236,1712948393018,778.42,0.0001851,2]
[322317237,1712948393230,778.42,0.00018515,2]
[322317238,1712948393515,778.42,0.0001852,2]
[322317239,1712948393679,778.42,0.00018524,2]
[322317240,1712948393895,778.42,0.00018529,2]
[322317241,1712948394269,778.42,0.00018534,2]
[322317242,1712948394494,778.42,0.00018539,2]
[322317243,1712948394840,778.42,0.00018544,2]
[322317244,1712948394873,465.79,0.00018453,2]
[322317245,1712948394978,778.42,0.00018549,2]
[322317246,1712948395188,778.42,0.00018554,2]
[322317247,1712948395625,778.42,0.00018559,2]
[322317248,1712948395853,778.42,0.00018563,2]
[322317249,1712948396083,778.42,0.00018568,2]
[322317250,1712948396595,778.42,0.00018573,2]
[322317251,1712948408669,150.0,0.0001847,2]
[322317253,1712948432220,218.83,0.00014776,2]
[322317254,1712948435270,159.66,0.0001847,2]
[322317255,1712948443768,500.0,0.0001847,2]
[322317256,1712948448690,250.0,0.0001847,2]
[322317258,1712948451823,1469.44551337,0.0001847,2]
[322317260,1712948454674,15658.91148389,0.0001847,2]
[322317261,1712948460396,1657.3,0.00018446,2]
[322317262,1712948460442,764.63,0.00016528,2]
[322317263,1712948460741,764.63,0.00018792,2]
[322317264,1712948461164,9026.07410603,0.00018991,2]
[322317265,1712948463006,292.0,0.00019641,15]
[322317266,1712948463461,292.0,0.00019631,15]
[322317267,1712948463972,292.0,0.00019621,15]
[322317268,1712948464873,292.0,0.0002097,15]
[322317269,1712948465826,2537.25772202,0.00013853,2]
[322317270,1712948466498,292.0,0.0002096,15]
[322317271,1712948467077,292.0,0.0002095,15]